bitfinex-derivatives/quotes_SOLF0:USTF0_20260115
["timestamp","ask_amount","ask_price","bid_price","bid_amount"]
[1768488356631,3.16703313,143.49,143.36,82.32]
[1768488356834,0.05060717,143.45,143.42,0.04477231]
[1768488357335,0.05060717,143.45,143.36,180.0025]
[1768488357336,0.05060717,143.45,143.36,82.32]
[1768488357639,3.16703313,143.47,143.37,6.279]
[1768488357846,3.16703313,143.51,143.37,97.6754]
[1768488358335,3.16703313,143.5,143.36,91.31515227]
[1768488358537,0.0526462,143.45,143.43,0.04670084]
[1768488358836,6.2752,143.47,143.36,6.2795]
[1768488359035,3.16703313,143.48,143.37,82.36]
[1768488359626,3.16703313,143.47,143.37,82.36]
[1768488360042,0.04879143,143.43,143.41,0.05020683]
[1768488360343,3.16703313,143.5,143.41,0.05020683]
[1768488360541,20.76117537,143.77,143.41,0.05020683]
[1768488360542,3.16703313,143.54,143.41,0.05020683]
[1768488360738,3.16703313,143.54,143.4,97.6576]
[1768488360937,3.16703313,143.57,143.43,97.6359]
[1768488361136,3.16703313,143.56,143.43,179.9959]
[1768488361338,6.2716,143.55,143.45,6.2755]
[1768488361540,0.05209759,143.51,143.48,0.04567827]
[1768488361738,97.4961,143.64,143.48,0.04567827]
[1768488361739,100.69473313,143.6,143.48,0.04567827]
[1768488361941,6.2712,143.56,143.48,0.04567827]
[1768488362137,3.16703313,143.55,143.43,82.36]
[1768488362341,3.16703313,143.53,143.39,97.6635]
[1768488362543,3.16703313,143.53,143.42,6.2769]
[1768488363040,0.05184893,143.49,143.46,0.05311402]
[1768488364646,3.16703313,143.53,143.46,0.05311402]
[1768488365051,6.273,143.52,143.46,0.05311402]
[1768488365351,3.16703313,143.53,143.46,0.05311402]
[1768488365536,9.43963313,143.53,143.46,0.05311402]
[1768488365846,0.04381218,143.51,143.4,82.36]
[1768488366044,97.5929,143.5,143.36,97.6852]
[1768488366244,3.16703313,143.47,143.36,82.38]
[1768488366934,3.16703313,143.5,143.4,0.04430708]
[1768488367145,3.16703313,143.5,143.38,6.2786]
[1768488367643,9.44083313,143.5,143.39,6.2782]
[1768488367847,3.16703313,143.53,143.4,97.6575]
[1768488368048,97.5902,143.5,143.36,97.6821]
[1768488368348,97.5902,143.5,143.42,0.04454042]
[1768488368349,6.2743,143.49,143.42,0.04454042]
[1768488368542,97.5902,143.5,143.42,0.04454042]
[1768488368543,0.04771347,143.44,143.42,0.04454042]
[1768488368752,97.5902,143.5,143.42,0.04454042]
[1768488368952,6.2737,143.5,143.42,0.04454042]
[1768488369149,3.16703313,143.49,143.42,0.04454042]
[1768488369547,9.44143313,143.49,143.41,82.38]
[1768488369750,100.76763313,143.49,143.41,82.38]
[1768488369951,97.6142,143.47,143.39,82.38]
[1768488370140,100.77383313,143.48,143.39,82.38]
[1768488370141,0.04599237,143.46,143.39,82.38]
[1768488370445,3.2130255,143.46,143.38,82.38]
[1768488370650,6.2756,143.46,143.38,82.38]
[1768488370848,106.57695227,143.52,143.38,181.4476]
[1768488370849,100.74883313,143.52,143.38,181.4476]
[1768488371049,3.16703313,143.52,143.38,180.0476]
[1768488371355,6.2739,143.5,143.44,0.0509125]
[1768488371653,0.04929021,143.46,143.44,0.0509125]
[1768488371842,100.75343313,143.51,143.44,0.0509125]
[1768488372041,0.0513981,143.46,143.38,88.6588]
[1768488372244,3.16703313,143.5,143.38,82.38]
[1768488372450,100.76083313,143.5,143.38,82.38]
[1768488372953,3.16703313,143.5,143.38,82.38]
[1768488373359,9.44083313,143.5,143.43,0.05241999]
[1768488374351,3.16703313,143.53,143.43,0.05241999]
[1768488374548,0.05006092,143.48,143.38,97.667]
[1768488374843,3.16703313,143.49,143.36,97.6803]
[1768488375050,3.16703313,143.49,143.37,82.38]
[1768488375749,3.16703313,143.49,143.38,6.2786]
[1768488375953,0.05315236,143.44,143.42,0.04775117]
[1768488376152,3.16703313,143.49,143.42,0.04775117]
[1768488376453,3.16703313,143.49,143.36,97.6803]
[1768488376454,3.16703313,143.47,143.36,6.2795]
[1768488376644,3.16703313,143.47,143.36,88.6595]
[1768488377656,3.16703313,143.47,143.4,0.05132336]
[1768488377847,9.44223313,143.47,143.4,0.05132336]
[1768488378048,0.04618914,143.45,143.4,0.05132336]
[1768488379150,3.16703313,143.49,143.4,0.05132336]
[1768488379354,3.16703313,143.49,143.37,97.6751]
[1768488379558,3.16703313,143.49,143.36,82.38]
[1768488380154,3.16703313,143.46,143.36,82.38]
[1768488380369,3.2200862,143.44,143.35,16.69238612]
[1768488380560,6.2769,143.43,143.35,16.69238612]
[1768488380749,3.2091667,143.42,143.35,16.69238612]
[1768488381852,0.05325225,143.4,143.37,0.05245044]
[1768488383358,0.05325225,143.4,143.35,16.69238612]
[1768488384556,0.05325225,143.4,143.36,0.04753867]
[1768488384958,3.2888179,143.44,143.36,0.04753867]
[1768488385255,6.2748,143.48,143.37,6.2791]
[1768488385560,3.2888179,143.48,143.35,16.69238612]
[1768488385855,6.2762,143.45,143.35,16.69238612]
[1768488386066,6.2762,143.45,143.36,82.42]
[1768488386362,0.0484589,143.41,143.35,16.69238612]
[1768488387249,3.2888179,143.47,143.35,18.09238612]
[1768488387448,6.2751,143.47,143.35,16.69238612]
[1768488387658,3.2888179,143.5,143.35,115.78088612]
[1768488387960,6.275,143.47,143.37,6.279]
[1768488388358,6.275,143.47,143.38,82.42]
[1768488388554,6.2755,143.46,143.41,0.05321637]
[1768488388755,0.04469745,143.44,143.41,0.05321637]
[1768488388956,0.04469745,143.44,143.38,82.42]
[1768488389153,0.04469745,143.44,143.41,0.0491468]
[1768488389961,100.8829179,143.5,143.41,0.0491468]
[1768488390252,100.8829179,143.5,143.38,82.42]
[1768488390453,6.2757,143.46,143.38,82.42]
[1768488390652,97.6145,143.47,143.38,82.42]
[1768488390853,100.9063179,143.46,143.38,82.42]
[1768488391058,6.2774,143.42,143.35,16.69238612]
[1768488391254,100.9063179,143.46,143.36,82.42]
[1768488391451,97.6145,143.47,143.36,82.42]
[1768488392158,100.8898179,143.49,143.36,82.42]
[1768488392363,103.13139874,143.53,143.4,5.61368345]
[1768488392364,100.8599179,143.53,143.4,5.61368345]
[1768488392553,6.2737,143.5,143.42,6.277]
[1768488392959,100.8527179,143.54,143.43,82.42]
[1768488393156,6.2729,143.52,143.44,6.2761]
[1768488393354,3.2888179,143.58,143.43,87.98029874]
[1768488393558,3.2888179,143.58,143.47,0.0445135]
[1768488393858,9.5591179,143.58,143.47,6.2747]
[1768488394061,3.2888179,143.58,143.43,103.19319874]
[1768488394266,100.8284179,143.58,143.44,82.42]
[1768488394466,100.8284179,143.58,143.43,5.56029874]
[1768488394668,9.5590179,143.58,143.45,88.6756]
[1768488394865,3.2888179,143.58,143.49,0.05314185]
[1768488395066,100.8323179,143.57,143.49,0.05314185]
[1768488395267,6.2707,143.57,143.45,88.6756]
[1768488395567,0.04480675,143.52,143.45,82.4]
[1768488396468,3.2888179,143.58,143.46,1.4]
[1768488396668,3.2888179,143.58,143.45,82.4]
[1768488396862,97.5429,143.57,143.45,82.4]
[1768488397559,0.04993831,143.52,143.45,82.4]
[1768488397966,3.2888179,143.58,143.45,87.96029874]
[1768488398167,97.5023,143.63,143.45,89.36029874]
[1768488398168,97.533,143.59,143.45,89.36029874]
[1768488398369,97.5429,143.57,143.45,87.96029874]
[1768488398763,100.8218179,143.59,143.45,89.36029874]
[1768488398969,100.8218179,143.59,143.45,82.4]
[1768488399169,0.04560491,143.53,143.51,0.04641341]
[1768488399474,6.2717,143.55,143.45,88.6756]
[1768488399674,6.2717,143.55,143.46,6.2751]
[1768488399964,6.2707,143.57,143.45,181.4203]
[1768488400362,3.2888179,143.59,143.45,181.4203]
[1768488400363,6.2712,143.56,143.45,181.4203]
[1768488400562,6.2712,143.56,143.5,0.04953861]
[1768488400761,6.2712,143.56,143.5,82.42953861]
[1768488401163,97.5523,143.56,143.5,82.42953861]
[1768488401362,0.04907772,143.54,143.5,82.42953861]
[1768488401759,6.2725,143.53,143.5,82.42953861]
[1768488401959,0.04907772,143.54,143.5,82.42953861]
[1768488402767,0.04907772,143.54,143.46,82.38]
[1768488402961,97.5772,143.52,143.46,82.38]
[1768488403167,6.2743,143.49,143.41,11.83769874]
[1768488403366,6.2743,143.49,143.42,82.38]
[1768488403566,97.5904,143.5,143.42,82.38]
[1768488403969,97.6039,143.48,143.36,5.56029874]
[1768488404169,97.6039,143.48,143.37,82.38]
[1768488404365,0.05033043,143.43,143.41,0.04975379]
[1768488404871,0.05033043,143.43,143.37,82.38]
[1768488404872,6.32230032,143.43,143.37,82.38]
[1768488405173,6.32230032,143.43,143.33,82.38]
[1768488405174,0.04550032,143.43,143.33,82.38]
[1768488405376,6.32240032,143.43,143.33,82.38]
[1768488405671,0.04550032,143.43,143.33,82.38]
[1768488405872,6.2774,143.42,143.33,82.38]
[1768488406373,100.9073179,143.46,143.37,0.05348636]
[1768488406579,0.05081373,143.4,143.37,0.05348636]
[1768488406875,0.05103,143.43,143.4,0.05261715]
[1768488407069,6.32971794,143.43,143.34,6.2803]
[1768488407280,0.05281794,143.43,143.33,82.38]
[1768488407472,3.2888179,143.42,143.33,82.38]
[1768488407776,6.2783,143.4,143.35,5.84948612]
[1768488407979,3.2888179,143.42,143.35,5.84948612]
[1768488408474,3.2888179,143.42,143.23,12.5704]
[1768488408475,97.6622,143.4,143.27,5.56029874]
[1768488408669,97.6453,143.42,143.3,5.56029874]
[1768488408866,6.2779,143.41,143.3,11.84259874]
[1768488409076,3.2888179,143.43,143.31,97.7165]
[1768488409279,100.9062179,143.46,143.35,0.04447427]
[1768488409463,100.8823179,143.5,143.35,97.73597427]
[1768488409663,100.8926179,143.48,143.34,87.96029874]
[1768488410069,9.5634179,143.48,143.4,0.05029026]
[1768488410385,3.2888179,143.48,143.4,0.05029026]
[1768488410671,100.9002179,143.47,143.4,0.05029026]
[1768488410870,9.5639179,143.47,143.4,0.05029026]
[1768488411279,0.05331638,143.45,143.4,0.05029026]
[1768488411671,6.2767,143.43,143.28,97.7333]
[1768488411868,99.08101638,143.45,143.32,97.7117]
[1768488411869,3.09056064,143.45,143.32,97.7117]
[1768488412073,3.09056064,143.45,143.31,180.1165]
[1768488412277,6.2765,143.44,143.32,97.7117]
[1768488412479,87.96029874,143.47,143.34,97.6983]
[1768488412882,0.04825401,143.42,143.34,97.6983]
[1768488413272,0.04825401,143.42,143.37,0.0517751]
[1768488413468,9.36526064,143.48,143.37,88.7309751]
[1768488413875,9.36526064,143.48,143.37,88.6792]
[1768488414182,97.5946,143.5,143.37,88.6792]
[1768488414183,6.2738,143.5,143.39,6.2783]
[1768488414570,0.05071472,143.46,143.43,0.05345773]
[1768488415083,87.96029874,143.51,143.43,0.05345773]
[1768488415379,9.36336064,143.52,143.43,0.05345773]
[1768488415380,3.09056064,143.52,143.43,0.05345773]
[1768488415576,11.83239874,143.54,143.43,6.2764]
[1768488415780,14.92295938,143.54,143.42,82.4]
[1768488415975,3.09056064,143.53,143.42,82.4]
[1768488416175,3.09056064,143.5,143.38,82.4]
[1768488416377,3.09056064,143.48,143.38,82.4]
[1768488416879,3.09056064,143.55,143.42,97.644]
[1768488417181,3.09056064,143.55,143.43,82.4]
[1768488418485,3.09056064,143.55,143.45,6.2756]
[1768488418887,0.04442695,143.5,143.48,0.04929438]
[1768488419184,3.09056064,143.55,143.48,0.04929438]
[1768488419387,3.09056064,143.59,143.48,180.04999438]
[1768488419577,3.09056064,143.59,143.49,6.2738]
[1768488419885,3.09056064,143.59,143.48,180.0007]
[1768488420183,0.05019341,143.55,143.52,0.04491399]
[1768488420588,0.05019341,143.55,143.46,82.4]
[1768488420786,3.09056064,143.53,143.39,97.6648]
[1768488420977,3.09056064,143.52,143.4,97.6567]
[1768488421181,3.09056064,143.52,143.39,97.6648]
[1768488421485,82.4,143.55,143.43,97.6376]
[1768488421682,3.09056064,143.55,143.45,97.6239]
[1768488421883,3.09056064,143.55,143.44,97.67918301]
[1768488422085,3.09056064,143.55,143.43,82.4]
[1768488422386,3.09056064,143.54,143.45,6.2757]
[1768488422778,3.09056064,143.54,143.42,97.6413]
[1768488422988,9.36256064,143.54,143.48,0.04689716]
[1768488423175,3.09056064,143.53,143.48,0.04689716]
[1768488423380,3.09056064,143.53,143.45,6.2756]
[1768488423576,3.09056064,143.53,143.43,97.6373]
[1768488423577,9.36156064,143.56,143.47,6.2749]
[1768488423786,5.56029874,143.58,143.49,97.592]
[1768488424084,5.56029874,143.58,143.47,179.9875]
[1768488424085,8.65085938,143.58,143.47,179.9875]
[1768488424284,3.09056064,143.57,143.47,82.38]
[1768488424589,3.09056064,143.57,143.51,0.0477072]
[1768488426088,0.04599207,143.55,143.47,179.9872]
[1768488426288,0.04599207,143.55,143.48,6.2743]
[1768488426682,3.09056064,143.56,143.48,6.2743]
[1768488427083,3.09056064,143.55,143.48,6.2743]
[1768488427293,0.05020525,143.53,143.48,6.2743]
[1768488427490,3.14076589,143.53,143.46,6.275]
[1768488427790,3.09056064,143.53,143.43,97.6376]
[1768488428387,3.09056064,143.52,143.41,82.38]
[1768488428588,3.09056064,143.51,143.41,82.38]
[1768488428783,0.05336274,143.48,143.45,0.04776858]
[1768488428981,0.05336274,143.48,143.4,6.2778]
[1768488429197,3.09056064,143.51,143.39,97.6645]
[1768488430084,0.05061683,143.46,143.41,6.2774]
[1768488430597,0.05061683,143.46,143.38,97.6653]
[1768488430890,0.05061683,143.46,143.41,0.05086166]
[1768488431796,3.14117747,143.46,143.41,0.05086166]
[1768488433688,3.14117747,143.46,143.37,82.38]
[1768488434096,3.09056064,143.45,143.34,6.2804]
[1768488434495,0.05318574,143.41,143.34,97.6989]
[1768488434693,3.09056064,143.48,143.37,6.2791]
[1768488435884,0.04789909,143.44,143.37,6.2791]
[1768488436196,3.09056064,143.51,143.4,97.658]
[1768488436397,3.09056064,143.54,143.41,180.0513]
[1768488436594,3.09056064,143.54,143.44,6.276]
[1768488436985,3.09056064,143.54,143.41,180.0513]
[1768488436986,3.09056064,143.52,143.41,82.4]
[1768488437198,3.13904852,143.5,143.38,82.4]
[1768488437397,3.09056064,143.5,143.38,82.4]
[1768488437597,0.04769378,143.45,143.38,82.4]
[1768488439591,3.13825442,143.45,143.31,103.27609874]
[1768488439789,3.09056064,143.43,143.33,6.2809]
[1768488439992,3.09056064,143.43,143.31,87.96029874]
[1768488440200,3.09056064,143.43,143.31,82.4]
[1768488440493,3.09056064,143.41,143.31,82.4]
[1768488440698,3.09056064,143.41,143.31,180.1146]
[1768488440903,3.09056064,143.41,143.35,0.04567204]
[1768488441700,3.20195785,143.4,143.3,97.7232]
[1768488442003,3.20195785,143.4,143.3,6.2822]
[1768488442996,0.04849504,143.36,143.34,0.05152889]
[1768488443196,3.20195785,143.4,143.34,0.05152889]
[1768488443399,3.20195785,143.4,143.28,97.7362]
[1768488443585,3.20195785,143.4,143.31,6.2816]
[1768488444098,8.76225659,143.43,143.34,6.2804]
[1768488444294,3.20195785,143.43,143.33,97.7045]
[1768488444493,0.04882781,143.4,143.37,0.04491216]
[1768488444794,0.04882781,143.4,143.31,82.42]
[1768488444996,3.20195785,143.43,143.31,82.42]
[1768488445197,3.20195785,143.43,143.3,97.7252]
[1768488445398,3.20195785,143.43,143.3,180.1452]
[1768488445598,3.01641827,143.42,143.33,6.2808]
[1768488445997,0.05344958,143.39,143.33,6.2808]
[1768488446396,0.05344958,143.39,143.32,97.7098]
[1768488446594,3.01641827,143.42,143.35,0.05154586]
[1768488446800,3.01641827,143.4,143.28,97.7362]
[1768488446994,3.01641827,143.4,143.32,6.2813]
[1768488447393,3.01641827,143.4,143.29,82.42]
[1768488448103,0.05072634,143.36,143.31,6.2818]
[1768488448299,0.05072634,143.36,143.33,0.05286467]
[1768488448601,0.05072634,143.36,143.29,6.2825]
[1768488448812,0.05072634,143.36,143.26,97.7527]
[1768488448813,0.05072634,143.36,143.28,97.7361]
[1768488448992,3.01641827,143.39,143.28,97.7361]
[1768488449190,3.01641827,143.38,143.27,97.7429]
[1768488449396,3.01641827,143.43,143.29,97.7294]
[1768488449593,0.04913725,143.34,143.31,0.04895987]
[1768488449794,0.04913725,143.34,143.31,0.04535113]
[1768488449795,0.04985973,143.34,143.31,0.04535113]
[1768488451707,0.04985973,143.34,143.25,180.1964]
[1768488451909,3.01641827,143.37,143.26,97.7532]
[1768488452093,3.01641827,143.37,143.29,6.2825]
[1768488452298,3.01641827,143.37,143.25,180.1964]
[1768488452499,3.01641827,143.37,143.26,97.7533]
[1768488452701,0.04519477,143.33,143.27,97.7459]
[1768488452993,0.04519477,143.33,143.29,6.2824]
[1768488453304,0.04519477,143.33,143.27,97.7455]
[1768488454006,3.01641827,143.37,143.28,97.7388]
[1768488454206,3.01641827,143.37,143.29,0.02963458]
[1768488454405,9.29421827,143.41,143.3,97.7263]
[1768488454705,9.29421827,143.41,143.3,180.1663]
[1768488455099,9.29451827,143.4,143.31,6.2816]
[1768488455299,97.6409,143.43,143.27,180.1855]
[1768488455300,3.06172626,143.37,143.27,180.1855]
[1768488455606,3.01641827,143.37,143.27,180.1855]
[1768488455808,9.29591827,143.37,143.29,6.2826]
[1768488456202,3.01641827,143.37,143.27,82.44]
[1768488456506,0.05048608,143.33,143.27,6.2833]
[1768488456802,0.05048608,143.33,143.28,6.2831]
[1768488457198,0.05048608,143.33,143.25,82.44]
[1768488458003,0.05048608,143.33,143.26,97.7516]
[1768488458413,0.05048608,143.33,143.25,180.197]
[1768488458911,0.05048608,143.33,143.29,6.2827]
[1768488459208,3.01641827,143.37,143.25,180.197]
[1768488459712,3.01641827,143.36,143.26,82.46]
[1768488460208,0.04678759,143.32,143.26,82.46]
[1768488460407,3.01641827,143.39,143.26,180.2106]
[1768488460911,6.279,143.38,143.3,6.2823]
[1768488461114,3.01641827,143.42,143.31,82.46]
[1768488461506,0.04395881,143.38,143.35,0.04727108]
[1768488463012,4.23063296,143.45,143.35,0.04727108]
[1768488463216,3.01641827,143.45,143.35,97.6909]
[1768488463412,3.01641827,143.48,143.36,180.1423]
[1768488463606,3.01641827,143.48,143.37,97.6775]
[1768488463803,3.01641827,143.48,143.4,6.2777]
[1768488464007,0.05194604,143.45,143.43,0.05198277]
[1768488464207,82.46,143.51,143.43,0.05198277]
[1768488464515,292.3944,143.69,143.43,0.05198277]
[1768488464516,82.46,143.56,143.43,0.05198277]
[1768488464716,3.01641827,143.55,143.42,97.6414]
[1768488465208,9.28781827,143.55,143.44,6.2759]
[1768488465404,0.05103519,143.5,143.47,0.04984373]
[1768488467804,3.01641827,143.55,143.47,0.04984373]
[1768488469116,0.05240895,143.52,143.47,0.04984373]
[1768488469419,3.01641827,143.58,143.47,0.04984373]
[1768488469818,3.01641827,143.58,143.45,97.6209]
[1768488470112,3.01641827,143.58,143.48,6.2743]
[1768488470316,3.01641827,143.58,143.48,97.6036]
[1768488470708,100.53691827,143.61,143.49,82.42]
[1768488470914,3.030805,143.59,143.46,82.42]
[1768488471314,3.030805,143.62,143.5,97.5895]
[1768488472014,0.05024865,143.57,143.55,0.04821776]
[1768488472212,3.030805,143.62,143.55,0.04821776]
[1768488472419,0.04857521,143.57,143.55,0.04821776]
[1768488472622,3.030805,143.62,143.51,82.42]
[1768488473211,3.030805,143.59,143.49,82.4]
[1768488473614,3.030805,143.58,143.42,97.6439]
[1768488473823,3.030805,143.54,143.43,180.0374]
[1768488474115,3.030805,143.54,143.44,6.2761]
[1768488474815,0.04652203,143.5,143.45,97.6234]
[1768488475121,3.030805,143.57,143.48,0.0510469]
[1768488475319,3.030805,143.57,143.47,6.2749]
[1768488475521,3.030805,143.57,143.47,97.6101]
[1768488475726,3.030805,143.57,143.46,97.6138]
[1768488476227,3.030805,143.57,143.5,0.04607692]
[1768488476926,97.5224,143.6,143.5,0.04607692]
[1768488476927,3.030805,143.6,143.5,0.04607692]
[1768488477117,3.030805,143.6,143.48,179.9808]
[1768488477432,3.030805,143.63,143.51,97.583]
[1768488477946,236.60248204,143.65,143.56,0.0464794]
[1768488478113,97.4887,143.65,143.56,0.0464794]
[1768488478428,3.030805,143.63,143.51,82.38]
[1768488478626,3.030805,143.62,143.52,6.2725]
[1768488478820,0.05159702,143.58,143.56,0.05103096]
[1768488480721,3.08240202,143.58,143.45,97.6231]
[1768488480922,3.030805,143.61,143.51,97.5834]
[1768488481121,3.030805,143.61,143.5,97.5867]
[1768488481717,4.24336968,143.65,143.52,97.5741]
[1768488481924,4.24336968,143.65,143.52,179.9541]
[1768488482126,4.24336968,143.65,143.53,97.5697]
[1768488482323,9.298505,143.64,143.52,179.9541]
[1768488482727,3.030805,143.64,143.53,97.5692]
[1768488482924,3.030805,143.72,143.57,97.59203082]
[1768488483122,3.030805,143.72,143.59,97.5284]
[1768488483328,3.030805,143.72,143.61,97.5154]
[1768488483621,3.030805,143.72,143.62,97.5081]
[1768488483818,3.030805,143.72,143.6,97.5211]
[1768488484023,3.030805,143.71,143.62,6.2681]
[1768488484222,3.030805,143.75,143.65,0.04854571]
[1768488484424,6.2634,143.74,143.64,6.2673]
[1768488484917,3.030805,143.75,143.64,97.4926]
[1768488485122,3.030805,143.75,143.61,179.8751]
[1768488485323,0.05043166,143.71,143.68,0.04492131]
[1768488485634,0.05043166,143.71,143.62,82.36]
[1768488485820,9.295005,143.72,143.62,88.6283]
[1768488486130,3.030805,143.71,143.62,6.2683]
[1768488486318,3.030805,143.71,143.61,179.874]
[1768488486522,0.05135106,143.67,143.65,0.04402041]
[1768488486722,3.030805,143.72,143.61,82.36]
[1768488486923,3.030805,143.72,143.65,0.05299243]
[1768488487725,3.030805,143.75,143.65,0.05299243]
[1768488488030,6.262,143.77,143.67,6.2658]
[1768488488225,9.292805,143.77,143.69,0.04923665]
[1768488488427,0.04897221,143.73,143.69,0.04923665]
[1768488490334,22.95398612,143.78,143.69,0.04923665]
[1768488490335,16.69238612,143.78,143.7,6.2645]
[1768488490537,16.69238612,143.78,143.69,0.04923665]
[1768488490735,16.69238612,143.78,143.68,97.4633]
[1768488490930,16.69238612,143.78,143.62,106.5557148]
[1768488491137,3.030805,143.76,143.63,97.4978]
[1768488491331,6.2647,143.71,143.62,82.32]
[1768488491536,3.0798487,143.71,143.6,97.5185]
[1768488491731,3.030805,143.71,143.6,179.8185]
[1768488491932,3.030805,143.71,143.62,6.268]
[1768488492133,3.030805,143.71,143.6,82.3]
[1768488492532,3.030805,143.71,143.64,0.0491521]
[1768488492731,0.04810974,143.67,143.64,0.0491521]
[1768488493137,0.04810974,143.67,143.56,97.5462]
[1768488493326,3.030805,143.69,143.57,82.3]
[1768488494331,9.296405,143.69,143.62,0.05234588]
[1768488494528,3.030805,143.69,143.62,0.05234588]
[1768488494729,3.030805,143.72,143.63,6.2677]
[1768488494946,3.030805,143.75,143.63,97.5007]
[1768488495235,3.030805,143.75,143.66,0.04577344]
[1768488495438,3.030805,143.75,143.63,97.5007]
[1768488495648,3.030805,143.75,143.69,0.04643324]
[1768488496431,3.030805,143.75,143.66,6.2664]
[1768488496829,16.69238612,143.78,143.67,97.4741]
[1768488497033,16.69238612,143.78,143.68,97.4672]
[1768488497233,16.69238612,143.78,143.69,97.4601]
[1768488497436,16.69238612,143.78,143.72,0.04543832]
[1768488498330,3.030805,143.77,143.72,0.04543832]
[1768488498536,3.030805,143.75,143.64,179.7706]
[1768488498739,25.98489112,143.78,143.67,97.4742]
[1768488498939,19.72319112,143.78,143.68,97.4673]
[1768488499243,3.030805,143.77,143.68,6.2655]
[1768488499441,3.030805,143.77,143.67,97.4742]
[1768488499638,0.0507504,143.74,143.71,0.04617578]
[1768488500342,0.0507504,143.74,143.71,6.31037578]
[1768488500543,16.69238612,143.78,143.71,0.04617578]
[1768488500949,5.67198612,143.78,143.71,0.04617578]
[1768488501541,8.612e-05,143.78,143.71,97.49057578]
[1768488501741,8.612e-05,143.78,143.72,97.4407]
[1768488501941,8.612e-05,143.78,143.75,6.2626]
[1768488502238,8.612e-05,143.78,143.7,179.7313]
[1768488502445,8.612e-05,143.78,143.75,0.05362905]
[1768488503445,0.04777293,143.78,143.7,82.28]
[1768488504143,0.04777293,143.78,143.72,6.2639]
[1768488504344,0.04777293,143.78,143.71,97.447]
[1768488504950,88.5189,143.84,143.72,97.4404]
[1768488505152,82.26,143.84,143.72,97.4404]
[1768488505355,82.26,143.84,143.73,97.4334]
[1768488505648,82.26,143.84,143.75,6.2625]
[1768488505649,3.17041976,143.83,143.75,6.2625]
[1768488506238,3.17041976,143.83,143.78,0.04533999]
[1768488508150,3.17041976,143.83,143.72,82.26]
[1768488508348,3.17041976,143.83,143.73,97.4298]
[1768488508647,3.17041976,143.86,143.75,97.4185]
[1768488508951,3.17041976,143.86,143.79,6.2608]
[1768488509150,0.05025427,143.82,143.79,6.2608]
[1768488509556,3.17041976,143.86,143.79,6.2608]
[1768488509847,3.17041976,143.86,143.8,6.2604]
[1768488510041,9.42841976,143.86,143.79,0.05144202]
[1768488510241,3.17041976,143.86,143.79,0.05144202]
[1768488510648,3.17041976,143.84,143.79,0.05144202]
[1768488510846,3.17041976,143.84,143.74,82.24]
[1768488511043,3.17041976,143.84,143.77,6.2617]
[1768488511044,0.05200316,143.8,143.77,6.2617]
[1768488511245,0.05200316,143.8,143.74,179.663]
[1768488511449,6.2578,143.87,143.75,97.4196]
[1768488511655,3.17041976,143.88,143.76,97.4103]
[1768488511846,3.17041976,143.88,143.78,97.3995]
[1768488512045,1.21043478,143.9,143.8,97.3864]
[1768488512248,3.17041976,143.91,143.84,6.2586]
[1768488512449,3.17041976,143.91,143.84,0.05249906]
[1768488512649,0.04630248,143.89,143.84,0.05249906]
[1768488514252,3.17041976,143.88,143.75,97.4195]
[1768488514446,9.42841976,143.86,143.77,6.2616]
[1768488514651,3.17041976,143.86,143.76,97.4109]
[1768488514851,3.17041976,143.9,143.78,97.3967]
[1768488515050,9.42711976,143.89,143.81,6.2598]
[1768488515250,3.17041976,143.89,143.79,97.392]
[1768488515464,3.17041976,143.89,143.76,97.4109]
[1768488515465,0.04536904,143.86,143.76,97.4109]
[1768488515645,0.04536904,143.86,143.79,97.3904]
[1768488515844,3.17041976,143.89,143.79,97.3904]
[1768488516046,3.17041976,143.89,143.8,97.3849]
[1768488516358,3.17041976,143.92,143.81,97.3758]
[1768488516847,0.05055385,143.88,143.81,97.3758]
[1768488517249,0.05055385,143.88,143.83,0.04657901]
[1768488517450,0.05055385,143.88,143.83,6.30557901]
[1768488517848,0.05055385,143.88,143.83,0.04657901]
[1768488518046,0.05055385,143.88,143.85,6.2582]
[1768488518246,0.00662988,143.88,143.85,6.2582]
[1768488518446,0.00662988,143.88,143.83,0.04657901]
[1768488518847,0.00662988,143.88,143.84,6.2586]
[1768488519164,82.22,143.94,143.84,97.3561]